[Event "Early-Titled-Tuesday-Blitz-July-09-2024"]
[Site "Chess.com"]
[Date "2024.07.09"]
[Round "5"]
[White "Radislav_Atanasov"]
[Black "Silent-Killer100"]
[Result "1-0"]
[WhiteElo "2404"]
[BlackElo "2512"]
[TimeControl "180+1"]
[EndTime "8:57:57 PDT"]
[Termination "Radislav_Atanasov won by resignation"]

1. e4 {[%clk 0:03:00.1]} 1... e6 {[%clk 0:02:58.7]} 2. d4 {[%clk 0:02:48.1]}
2... d5 {[%clk 0:02:59.6]} 3. exd5 {[%clk 0:02:46.8]} 3... exd5 {[%clk
0:03:00.5]} 4. c4 {[%clk 0:02:46.3]} 4... Nf6 {[%clk 0:02:58.6]} 5. Nf3 {[%clk
0:02:44.8]} 5... Bf5 {[%clk 0:02:55.6]} 6. Nc3 {[%clk 0:02:41.3]} 6... Be7
{[%clk 0:02:47.3]} 7. Be2 {[%clk 0:02:41.2]} 7... O-O {[%clk 0:02:45.4]} 8. O-O
{[%clk 0:02:41.4]} 8... dxc4 {[%clk 0:02:39.3]} 9. Bxc4 {[%clk 0:02:40.8]} 9...
Nbd7 {[%clk 0:02:39]} 10. Re1 {[%clk 0:02:39.9]} 10... Nb6 {[%clk 0:02:38.5]}
11. Bb3 {[%clk 0:02:40.1]} 11... c6 {[%clk 0:02:33.4]} 12. Ne5 {[%clk
0:02:39.9]} 12... h6 {[%clk 0:02:29.3]} 13. Qf3 {[%clk 0:02:39.6]} 13... Bh7
{[%clk 0:02:26.7]} 14. Bf4 {[%clk 0:02:25.5]} 14... Bb4 {[%clk 0:02:20]} 15.
Rad1 {[%clk 0:02:23.5]} 15... Nbd5 {[%clk 0:02:10.8]} 16. Bg3 {[%clk 0:02:15.9]}
16... a5 {[%clk 0:02:04.3]} 17. a3 {[%clk 0:02:01.9]} 17... Nxc3 {[%clk
0:02:00]} 18. bxc3 {[%clk 0:02:01.2]} 18... Bxa3 {[%clk 0:02:00.5]} 19. Bh4
{[%clk 0:02:01.1]} 19... Be7 {[%clk 0:01:50.3]} 20. c4 {[%clk 0:01:40.9]} 20...
a4 {[%clk 0:01:49.5]} 21. Ba2 {[%clk 0:01:41.1]} 21... Kh8 {[%clk 0:01:32.3]}
22. d5 {[%clk 0:01:36.8]} 22... cxd5 {[%clk 0:01:31.4]} 23. cxd5 {[%clk
0:01:36.7]} 23... Bd6 {[%clk 0:01:31.6]} 24. Ng4 {[%clk 0:01:29.8]} 24... Nxg4
{[%clk 0:00:18.7]} 25. Bxd8 {[%clk 0:01:28.1]} 25... Nxh2 {[%clk 0:00:19.1]} 26.
Qe2 {[%clk 0:01:15.8]} 26... Raxd8 {[%clk 0:00:19.2]} 27. g3 {[%clk 0:01:15.5]}
27... a3 {[%clk 0:00:13.8]} 28. Kxh2 {[%clk 0:01:12.3]} 28... Bf5 {[%clk
0:00:13.4]} 29. Kg2 {[%clk 0:01:00.9]} 29... Rb8 {[%clk 0:00:12.3]} 30. Qb5
{[%clk 0:00:41.3]} 30... b6 {[%clk 0:00:10.6]} 31. Rc1 {[%clk 0:00:39]} 31...
Bc5 {[%clk 0:00:09.5]} 32. d6 {[%clk 0:00:35.7]} 32... Rbd8 {[%clk 0:00:05.6]}
33. Rxc5 {[%clk 0:00:34.2]} 33... bxc5 {[%clk 0:00:05.2]} 34. Qxc5 {[%clk
0:00:34.4]} 34... Bg6 {[%clk 0:00:02.5]} 35. d7 {[%clk 0:00:32.2]} 35... Ra8
{[%clk 0:00:03.4]} 36. Bd5 {[%clk 0:00:28.9]} 36... Ra6 {[%clk 0:00:02.1]} 37.
Qxf8+ {[%clk 0:00:28.5]} 1-0

[Event "Early-Titled-Tuesday-Blitz-July-09-2024"]
[Site "Chess.com"]
[Date "2024.07.09"]
[Round "5"]
[White "lu1860"]
[Black "DarkPassenger007"]
[Result "0-1"]
[WhiteElo "2035"]
[BlackElo "2377"]
[TimeControl "180+1"]
[EndTime "8:57:59 PDT"]
[Termination "DarkPassenger007 won by checkmate"]

1. d4 {[%clk 0:03:00.9]} 1... Nf6 {[%clk 0:02:59.5]} 2. c4 {[%clk 0:03:00.6]}
2... g6 {[%clk 0:02:59.7]} 3. Nf3 {[%clk 0:02:58.4]} 3... Bg7 {[%clk 0:02:58.3]}
4. g3 {[%clk 0:02:57.9]} 4... O-O {[%clk 0:02:55.8]} 5. Bg2 {[%clk 0:02:57]}
5... d5 {[%clk 0:02:56.2]} 6. cxd5 {[%clk 0:02:55.8]} 6... Nxd5 {[%clk
0:02:57.1]} 7. O-O {[%clk 0:02:55.4]} 7... Nb6 {[%clk 0:02:54.3]} 8. Nc3 {[%clk
0:02:54]} 8... Nc6 {[%clk 0:02:52.4]} 9. e3 {[%clk 0:02:52.9]} 9... e5 {[%clk
0:02:13.6]} 10. d5 {[%clk 0:02:41.8]} 10... Ne7 {[%clk 0:02:09.5]} 11. e4 {[%clk
0:02:33.1]} 11... f5 {[%clk 0:02:07.8]} 12. Qb3 {[%clk 0:02:04]} 12... Kh8
{[%clk 0:01:26.4]} 13. Ng5 {[%clk 0:01:58.3]} 13... a5 {[%clk 0:01:00.1]} 14. a3
{[%clk 0:01:39.3]} 14... h6 {[%clk 0:00:52.5]} 15. Ne6 {[%clk 0:01:36.3]} 15...
Bxe6 {[%clk 0:00:51.5]} 16. dxe6 {[%clk 0:01:35.9]} 16... a4 {[%clk 0:00:43.2]}
17. Qa2 {[%clk 0:01:31.9]} 17... f4 {[%clk 0:00:38.5]} 18. Rd1 {[%clk 0:01:18]}
18... Qe8 {[%clk 0:00:36.3]} 19. Nd5 {[%clk 0:01:11.3]} 19... Nbxd5 {[%clk
0:00:22.4]} 20. exd5 {[%clk 0:01:10.4]} 20... g5 {[%clk 0:00:17.7]} 21. Be4
{[%clk 0:01:02.6]} 21... Nf5 {[%clk 0:00:14.8]} 22. Bd2 {[%clk 0:00:57.8]} 22...
Nd6 {[%clk 0:00:14.7]} 23. Bc2 {[%clk 0:00:52.3]} 23... Qh5 {[%clk 0:00:11.4]}
24. Bd3 {[%clk 0:00:43.8]} 24... fxg3 {[%clk 0:00:10.3]} 25. fxg3 {[%clk
0:00:35]} 25... Qf3 {[%clk 0:00:08.2]} 26. Bf1 {[%clk 0:00:22.6]} 26... Ne4
{[%clk 0:00:03.6]} 27. Bb4 {[%clk 0:00:09]} 27... Nxg3 {[%clk 0:00:02.6]} 28.
hxg3 {[%clk 0:00:08.5]} 28... Qxg3+ {[%clk 0:00:03.5]} 29. Bg2 {[%clk
0:00:08.8]} 29... Rf2 {[%clk 0:00:03.2]} 30. b3 {[%clk 0:00:03.6]} 30... Qxg2#
{[%clk 0:00:03.3]} 0-1

[Event "Early-Titled-Tuesday-Blitz-July-09-2024"]
[Site "Chess.com"]
[Date "2024.07.09"]
[Round "5"]
[White "YairParkhov"]
[Black "malakismayil"]
[Result "1-0"]
[WhiteElo "2758"]
[BlackElo "2526"]
[TimeControl "180+1"]
[EndTime "8:58:04 PDT"]
[Termination "YairParkhov won by checkmate"]

1. e4 {[%clk 0:02:51.3]} 1... e5 {[%clk 0:02:59.4]} 2. Nf3 {[%clk 0:02:50.5]}
2... Nc6 {[%clk 0:02:59.8]} 3. Bc4 {[%clk 0:02:46.6]} 3... Bc5 {[%clk 0:02:59]}
4. O-O {[%clk 0:02:42.6]} 4... Nf6 {[%clk 0:02:59]} 5. d3 {[%clk 0:02:43.1]}
5... O-O {[%clk 0:02:58.8]} 6. Nc3 {[%clk 0:02:40.4]} 6... h6 {[%clk 0:02:58.7]}
7. Nd5 {[%clk 0:02:39.2]} 7... d6 {[%clk 0:02:58.5]} 8. c3 {[%clk 0:02:37.7]}
8... Nxd5 {[%clk 0:02:40.1]} 9. Bxd5 {[%clk 0:02:38]} 9... Bb6 {[%clk
0:02:39.7]} 10. a4 {[%clk 0:02:34.5]} 10... a6 {[%clk 0:02:34.7]} 11. Bxc6
{[%clk 0:02:16.7]} 11... bxc6 {[%clk 0:02:35.6]} 12. a5 {[%clk 0:02:17.4]} 12...
Ba7 {[%clk 0:02:34.3]} 13. d4 {[%clk 0:02:18.3]} 13... exd4 {[%clk 0:02:24.4]}
14. Nxd4 {[%clk 0:02:19.2]} 14... Bd7 {[%clk 0:02:22.2]} 15. Qf3 {[%clk
0:02:11.6]} 15... Re8 {[%clk 0:02:19.2]} 16. Be3 {[%clk 0:01:59.8]} 16... Qe7
{[%clk 0:02:16]} 17. Qg3 {[%clk 0:01:56.3]} 17... Qxe4 {[%clk 0:02:03.9]} 18.
Bxh6 {[%clk 0:01:54.8]} 18... Qg4 {[%clk 0:02:04.5]} 19. Qxg4 {[%clk 0:01:52.6]}
19... Bxg4 {[%clk 0:02:05.4]} 20. Be3 {[%clk 0:01:52.2]} 20... Bxd4 {[%clk
0:02:04.7]} 21. Bxd4 {[%clk 0:01:48.9]} 21... Re2 {[%clk 0:02:03.8]} 22. b4
{[%clk 0:01:48.8]} 22... Rae8 {[%clk 0:02:02.8]} 23. f3 {[%clk 0:01:45.3]} 23...
Bf5 {[%clk 0:02:02.9]} 24. Rf2 {[%clk 0:01:45.4]} 24... Bd3 {[%clk 0:02:02.4]}
25. Rxe2 {[%clk 0:01:43.6]} 25... Rxe2 {[%clk 0:02:03.3]} 26. Rd1 {[%clk
0:01:41.1]} 26... Bc4 {[%clk 0:02:02.7]} 27. h4 {[%clk 0:01:39.6]} 27... f6
{[%clk 0:01:56.8]} 28. Kh2 {[%clk 0:01:34.8]} 28... Kf7 {[%clk 0:01:56.2]} 29.
Kg3 {[%clk 0:01:35]} 29... Bb3 {[%clk 0:01:49.4]} 30. Rb1 {[%clk 0:01:32.4]}
30... Bc4 {[%clk 0:01:49.5]} 31. h5 {[%clk 0:01:32.4]} 31... Bd3 {[%clk
0:01:39.9]} 32. Rh1 {[%clk 0:01:29.1]} 32... Re8 {[%clk 0:01:31.4]} 33. Rd1
{[%clk 0:01:21.1]} 33... Bc4 {[%clk 0:01:30.4]} 34. Kf4 {[%clk 0:01:19.5]} 34...
Re2 {[%clk 0:01:25.6]} 35. Kg3 {[%clk 0:01:17.3]} 35... Re8 {[%clk 0:01:22.6]}
36. Ba7 {[%clk 0:01:14.3]} 36... Ra8 {[%clk 0:01:16.4]} 37. Bf2 {[%clk 0:01:14]}
37... Rh8 {[%clk 0:01:15.5]} 38. Rh1 {[%clk 0:01:13.8]} 38... Bd3 {[%clk
0:00:50.9]} 39. Kf4 {[%clk 0:01:12.9]} 39... Bc4 {[%clk 0:00:49.5]} 40. g4
{[%clk 0:01:12.4]} 40... Bd5 {[%clk 0:00:48.3]} 41. Re1 {[%clk 0:01:09.2]} 41...
Bc4 {[%clk 0:00:41.5]} 42. Bd4 {[%clk 0:01:06.4]} 42... Bd5 {[%clk 0:00:40.7]}
43. Kg3 {[%clk 0:01:05.9]} 43... Be6 {[%clk 0:00:39.3]} 44. f4 {[%clk
0:01:05.2]} 44... Bd5 {[%clk 0:00:39]} 45. Kh4 {[%clk 0:00:59.6]} 45... Bf3
{[%clk 0:00:35.8]} 46. Re3 {[%clk 0:00:57]} 46... Bd5 {[%clk 0:00:35.2]} 47. g5
{[%clk 0:00:54]} 47... fxg5+ {[%clk 0:00:17]} 48. fxg5 {[%clk 0:00:54.1]} 48...
Rd8 {[%clk 0:00:17.4]} 49. g6+ {[%clk 0:00:53.1]} 49... Kf8 {[%clk 0:00:17.6]}
50. Kg5 {[%clk 0:00:52.7]} 50... Rb8 {[%clk 0:00:11.5]} 51. h6 {[%clk
0:00:49.2]} 51... gxh6+ {[%clk 0:00:10.7]} 52. Kxh6 {[%clk 0:00:49.8]} 52... Bg8
{[%clk 0:00:09.6]} 53. Bg7# {[%clk 0:00:48.7]} 1-0

[Event "Early-Titled-Tuesday-Blitz-July-09-2024"]
[Site "Chess.com"]
[Date "2024.07.09"]
[Round "5"]
[White "FGHSMN"]
[Black "GoltsevDmitry2000"]
[Result "1-0"]
[WhiteElo "2993"]
[BlackElo "2736"]
[TimeControl "180+1"]
[EndTime "8:58:05 PDT"]
[Termination "FGHSMN won by checkmate"]

1. e4 {[%clk 0:02:55.4]} 1... e6 {[%clk 0:02:56.2]} 2. d4 {[%clk 0:02:51.6]}
2... d5 {[%clk 0:02:55.8]} 3. exd5 {[%clk 0:02:52.2]} 3... exd5 {[%clk
0:02:55.8]} 4. Bf4 {[%clk 0:02:52.9]} 4... Nf6 {[%clk 0:02:56]} 5. Nc3 {[%clk
0:02:52.8]} 5... Bd6 {[%clk 0:02:54.8]} 6. Qd2 {[%clk 0:02:53.2]} 6... O-O
{[%clk 0:02:53.6]} 7. O-O-O {[%clk 0:02:53.3]} 7... c6 {[%clk 0:02:52.4]} 8. f3
{[%clk 0:02:53.5]} 8... Bf5 {[%clk 0:02:51.7]} 9. g4 {[%clk 0:02:52.3]} 9... Bg6
{[%clk 0:02:52.1]} 10. h4 {[%clk 0:02:50.1]} 10... h5 {[%clk 0:02:52.5]} 11. Bg5
{[%clk 0:02:35.8]} 11... Nbd7 {[%clk 0:02:49.4]} 12. Nge2 {[%clk 0:02:03.9]}
12... b5 {[%clk 0:02:45.2]} 13. Nf4 {[%clk 0:02:02.5]} 13... Qa5 {[%clk
0:02:42.3]} 14. Kb1 {[%clk 0:01:51.5]} 14... b4 {[%clk 0:02:28.7]} 15. Nce2
{[%clk 0:01:47.8]} 15... hxg4 {[%clk 0:02:27.5]} 16. h5 {[%clk 0:01:44]} 16...
Bh7 {[%clk 0:02:25.9]} 17. h6 {[%clk 0:01:42.1]} 17... gxf3 {[%clk 0:02:14.1]}
18. hxg7 {[%clk 0:01:42]} 18... Rfb8 {[%clk 0:02:07.5]} 19. Ng3 {[%clk
0:01:34.5]} 19... Bc7 {[%clk 0:00:25.3]} 20. Bd3 {[%clk 0:01:30.8]} 20... b3
{[%clk 0:00:22.4]} 21. Qh2 {[%clk 0:01:04.1]} 21... Qxa2+ {[%clk 0:00:10.5]} 22.
Kc1 {[%clk 0:01:03.4]} 22... Qa1+ {[%clk 0:00:01.5]} 23. Kd2 {[%clk 0:01:03.2]}
23... Ba5+ {[%clk 0:00:02.2]} 24. c3 {[%clk 0:00:42.1]} 24... Qxb2+ {[%clk
0:00:02.4]} 25. Ke1 {[%clk 0:00:39.9]} 25... Bxc3+ {[%clk 0:00:02.7]} 26. Kf1
{[%clk 0:00:39.7]} 26... Qxh2 {[%clk 0:00:03]} 27. Rxh2 {[%clk 0:00:40.2]} 27...
Bxd3+ {[%clk 0:00:02.5]} 28. Nxd3 {[%clk 0:00:31.9]} 28... b2 {[%clk 0:00:03.1]}
29. Nf5 {[%clk 0:00:28.8]} 29... Nh7 {[%clk 0:00:02]} 30. Bh6 {[%clk 0:00:20.2]}
30... Re8 {[%clk 0:00:02.6]} 31. Nxb2 {[%clk 0:00:20.3]} 31... Bxb2 {[%clk
0:00:02.6]} 32. Rxb2 {[%clk 0:00:19.9]} 32... Re6 {[%clk 0:00:02.9]} 33. Rb7
{[%clk 0:00:19.9]} 33... Rd8 {[%clk 0:00:01.2]} 34. Rdb1 {[%clk 0:00:18.3]}
34... Rf6 {[%clk 0:00:01.6]} 35. Rxd7 {[%clk 0:00:17.9]} 35... Ra8 {[%clk
0:00:01.7]} 36. Ne7# {[%clk 0:00:17.5]} 1-0

[Event "Early-Titled-Tuesday-Blitz-July-09-2024"]
[Site "Chess.com"]
[Date "2024.07.09"]
[Round "5"]
[White "Andreikka"]
[Black "David_Arutinian"]
[Result "1-0"]
[WhiteElo "3018"]
[BlackElo "2832"]
[TimeControl "180+1"]
[EndTime "8:58:07 PDT"]
[Termination "Andreikka won on time"]

1. d4 {[%clk 0:02:59.7]} 1... Nf6 {[%clk 0:02:59.9]} 2. Nf3 {[%clk 0:02:59.9]}
2... d5 {[%clk 0:02:58.6]} 3. e3 {[%clk 0:03:00.2]} 3... e6 {[%clk 0:02:58.1]}
4. Bd3 {[%clk 0:02:58.9]} 4... c5 {[%clk 0:02:55.6]} 5. b3 {[%clk 0:02:58.8]}
5... Bd6 {[%clk 0:02:55.2]} 6. O-O {[%clk 0:02:55.6]} 6... O-O {[%clk
0:02:55.7]} 7. Bb2 {[%clk 0:02:54.9]} 7... b6 {[%clk 0:02:45.5]} 8. Nbd2 {[%clk
0:02:54.3]} 8... Bb7 {[%clk 0:02:41.8]} 9. Qe2 {[%clk 0:02:53.1]} 9... Nbd7
{[%clk 0:02:40.4]} 10. Ne5 {[%clk 0:02:50.5]} 10... Qc7 {[%clk 0:02:40.2]} 11.
f4 {[%clk 0:02:49]} 11... Ne4 {[%clk 0:02:38]} 12. Nxe4 {[%clk 0:02:45.4]} 12...
dxe4 {[%clk 0:02:38.1]} 13. Bc4 {[%clk 0:02:46]} 13... Nf6 {[%clk 0:02:27.3]}
14. f5 {[%clk 0:02:41.4]} 14... exf5 {[%clk 0:02:21.1]} 15. Rxf5 {[%clk
0:02:40.4]} 15... Bxe5 {[%clk 0:02:06.8]} 16. Rxe5 {[%clk 0:02:26]} 16... cxd4
{[%clk 0:01:57.9]} 17. exd4 {[%clk 0:02:26.9]} 17... Rae8 {[%clk 0:01:49.8]} 18.
Rf1 {[%clk 0:02:21.8]} 18... Qd7 {[%clk 0:01:39.7]} 19. h3 {[%clk 0:02:16]}
19... Bd5 {[%clk 0:01:34.5]} 20. Bxd5 {[%clk 0:02:09.6]} 20... Nxd5 {[%clk
0:01:33.8]} 21. Qxe4 {[%clk 0:02:00.6]} 21... Rxe5 {[%clk 0:01:33.9]} 22. dxe5
{[%clk 0:01:49.4]} 22... Qe6 {[%clk 0:01:23.3]} 23. Rd1 {[%clk 0:01:44.1]} 23...
Ne7 {[%clk 0:01:13]} 24. Rd6 {[%clk 0:01:40.6]} 24... Qc8 {[%clk 0:01:13.4]} 25.
e6 {[%clk 0:01:40.2]} 25... Qc5+ {[%clk 0:00:56.8]} 26. Qd4 {[%clk 0:01:39.9]}
26... Qxd4+ {[%clk 0:00:57.1]} 27. Rxd4 {[%clk 0:01:40.8]} 27... fxe6 {[%clk
0:00:56.9]} 28. Rd7 {[%clk 0:01:41.3]} 28... Rf7 {[%clk 0:00:55.8]} 29. Rb7
{[%clk 0:01:41.1]} 29... Nd5 {[%clk 0:00:51.2]} 30. Rb8+ {[%clk 0:01:34.7]}
30... Rf8 {[%clk 0:00:51.3]} 31. Rxf8+ {[%clk 0:01:33.8]} 31... Kxf8 {[%clk
0:00:52.2]} 32. Kf2 {[%clk 0:01:33.8]} 32... Kf7 {[%clk 0:00:50.6]} 33. a3
{[%clk 0:01:33.4]} 33... g5 {[%clk 0:00:40.3]} 34. Kf3 {[%clk 0:01:31.5]} 34...
h5 {[%clk 0:00:39.5]} 35. Bc1 {[%clk 0:01:19.1]} 35... Kf6 {[%clk 0:00:37]} 36.
Bd2 {[%clk 0:01:18.9]} 36... e5 {[%clk 0:00:31.1]} 37. g3 {[%clk 0:01:14.1]}
37... Nc7 {[%clk 0:00:20.3]} 38. g4 {[%clk 0:01:10.9]} 38... h4 {[%clk
0:00:19.1]} 39. Ke4 {[%clk 0:01:02.7]} 39... Ne6 {[%clk 0:00:19.6]} 40. Bc3
{[%clk 0:01:02.4]} 40... Kf7 {[%clk 0:00:03.9]} 41. Bxe5 {[%clk 0:01:01.4]}
41... Ke7 {[%clk 0:00:04.4]} 42. Kf5 {[%clk 0:01:01]} 42... Kd7 {[%clk
0:00:04.6]} 43. b4 {[%clk 0:00:58.2]} 43... b5 {[%clk 0:00:04.5]} 44. Bf6 {[%clk
0:00:55.8]} 44... Nf4 {[%clk 0:00:03.7]} 45. Bxg5 {[%clk 0:00:55.5]} 45... Nxh3
{[%clk 0:00:04.4]} 46. Bxh4 {[%clk 0:00:56.2]} 46... Ng1 {[%clk 0:00:04.2]} 47.
Bf2 {[%clk 0:00:53.8]} 47... Nf3 {[%clk 0:00:02.1]} 48. Bxa7 {[%clk 0:00:53.4]}
1-0

[Event "Early-Titled-Tuesday-Blitz-July-09-2024"]
[Site "Chess.com"]
[Date "2024.07.09"]
[Round "5"]
[White "Stanbad1"]
[Black "Cheer_Down"]
[Result "1-0"]
[WhiteElo "2600"]
[BlackElo "2428"]
[TimeControl "180+1"]
[EndTime "8:58:11 PDT"]
[Termination "Stanbad1 won by resignation"]

1. d4 {[%clk 0:03:00.9]} 1... d5 {[%clk 0:02:57.3]} 2. Nc3 {[%clk 0:03:00.6]}
2... Nf6 {[%clk 0:02:56.7]} 3. Bf4 {[%clk 0:03:00.7]} 3... c5 {[%clk 0:02:55.4]}
4. e4 {[%clk 0:03:00.3]} 4... Nxe4 {[%clk 0:02:53.9]} 5. Nxe4 {[%clk 0:03:00]}
5... dxe4 {[%clk 0:02:54.3]} 6. dxc5 {[%clk 0:03:00.1]} 6... Qa5+ {[%clk
0:02:54.5]} 7. c3 {[%clk 0:02:59.7]} 7... Qxc5 {[%clk 0:02:54.5]} 8. Qa4+ {[%clk
0:03:00]} 8... Nc6 {[%clk 0:02:53.6]} 9. Qxe4 {[%clk 0:03:00.5]} 9... Bf5 {[%clk
0:02:49.3]} 10. Qa4 {[%clk 0:02:59.8]} 10... e5 {[%clk 0:02:44.2]} 11. Be3
{[%clk 0:02:58.6]} 11... Qa5 {[%clk 0:02:44.2]} 12. Qxa5 {[%clk 0:02:58.3]}
12... Nxa5 {[%clk 0:02:44]} 13. Bb5+ {[%clk 0:02:58.7]} 13... Nc6 {[%clk
0:02:42.4]} 14. Ne2 {[%clk 0:02:56.8]} 14... a6 {[%clk 0:02:22.2]} 15. Bxc6+
{[%clk 0:02:54.3]} 15... bxc6 {[%clk 0:02:22.5]} 16. O-O-O {[%clk 0:02:54.7]}
16... Be7 {[%clk 0:02:14.9]} 17. Ng3 {[%clk 0:02:53.3]} 17... Bg6 {[%clk
0:02:13.4]} 18. f4 {[%clk 0:02:51.4]} 18... exf4 {[%clk 0:02:10.5]} 19. Bxf4
{[%clk 0:02:50.5]} 19... Rd8 {[%clk 0:02:11.1]} 20. Rhe1 {[%clk 0:02:47.6]}
20... Rxd1+ {[%clk 0:02:10.1]} 21. Kxd1 {[%clk 0:02:40.8]} 21... Kf8 {[%clk
0:02:04.2]} 22. Be5 {[%clk 0:02:38.1]} 22... f6 {[%clk 0:02:02.1]} 23. Bd4
{[%clk 0:02:36.8]} 23... Kf7 {[%clk 0:02:02.1]} 24. Ne4 {[%clk 0:02:34]} 24...
Rd8 {[%clk 0:01:58.7]} 25. Kc1 {[%clk 0:02:33.5]} 25... Rd5 {[%clk 0:01:58.1]}
26. Nd2 {[%clk 0:02:22.6]} 26... Bd6 {[%clk 0:01:50.3]} 27. g3 {[%clk
0:02:20.9]} 27... h5 {[%clk 0:01:46.7]} 28. Nc4 {[%clk 0:02:19.2]} 28... Bc7
{[%clk 0:01:44.2]} 29. b4 {[%clk 0:02:14.9]} 29... h4 {[%clk 0:01:40.6]} 30.
gxh4 {[%clk 0:02:05.8]} 30... Bxh2 {[%clk 0:01:29.5]} 31. Na5 {[%clk 0:02:05.2]}
31... Bf4+ {[%clk 0:01:26.6]} 32. Kb2 {[%clk 0:02:03.3]} 32... Rh5 {[%clk
0:01:16.1]} 33. Nxc6 {[%clk 0:02:01.8]} 33... Rxh4 {[%clk 0:01:15.2]} 34. Re7+
{[%clk 0:02:00.8]} 34... Kg8 {[%clk 0:01:14.3]} 35. Re2 {[%clk 0:01:52.2]} 35...
Bd3 {[%clk 0:01:12.5]} 36. Rf2 {[%clk 0:01:49.2]} 36... Bg3 {[%clk 0:01:05.9]}
37. Rf3 {[%clk 0:01:47.1]} 37... Rh2+ {[%clk 0:01:01.1]} 38. Kb3 {[%clk
0:01:44.3]} 38... Bc2+ {[%clk 0:00:59.5]} 39. Kc4 {[%clk 0:01:43.1]} 39... Bc7
{[%clk 0:00:49.3]} 40. Ne7+ {[%clk 0:01:42.3]} 40... Kf7 {[%clk 0:00:47.4]} 41.
Nd5 {[%clk 0:01:42]} 41... Bd8 {[%clk 0:00:45.7]} 42. Re3 {[%clk 0:01:29.9]}
42... Bb1 {[%clk 0:00:42]} 43. a4 {[%clk 0:01:27.9]} 43... g5 {[%clk 0:00:37.9]}
44. b5 {[%clk 0:01:24.5]} 44... Ba2+ {[%clk 0:00:35.1]} 45. Kc5 {[%clk
0:01:23.3]} 45... axb5 {[%clk 0:00:34]} 46. axb5 {[%clk 0:01:24.2]} 46... f5
{[%clk 0:00:31.3]} 47. Re5 {[%clk 0:01:21.1]} 47... Kg6 {[%clk 0:00:24]} 48.
Re6+ {[%clk 0:01:21.1]} 48... Kf7 {[%clk 0:00:23]} 49. Rd6 {[%clk 0:01:19.6]}
49... Bxd5 {[%clk 0:00:20.3]} 50. Rxd5 {[%clk 0:01:19.5]} 50... Be7+ {[%clk
0:00:20.5]} 51. Kc6 {[%clk 0:01:19.9]} 51... f4 {[%clk 0:00:19.3]} 52. c4 {[%clk
0:01:19]} 52... g4 {[%clk 0:00:18.5]} 53. Rf5+ {[%clk 0:01:18.2]} 53... Ke6
{[%clk 0:00:18.1]} 54. Rxf4 {[%clk 0:01:18.4]} 54... g3 {[%clk 0:00:18.4]} 55.
Re4+ {[%clk 0:01:18.6]} 55... Kf7 {[%clk 0:00:18]} 56. Be5 {[%clk 0:01:18.5]}
56... Rh6+ {[%clk 0:00:17.1]} 57. Kd7 {[%clk 0:01:16.7]} 57... g2 {[%clk
0:00:18]} 58. Rg4 {[%clk 0:01:13.8]} 58... Rg6 {[%clk 0:00:16.8]} 59. Rxg6
{[%clk 0:01:13.9]} 59... Kxg6 {[%clk 0:00:17.2]} 60. Bd4 {[%clk 0:01:14.2]}
60... Bf6 {[%clk 0:00:15.7]} 61. Bg1 {[%clk 0:01:13.9]} 61... Kf5 {[%clk
0:00:13.6]} 62. b6 {[%clk 0:01:13.9]} 62... Ke4 {[%clk 0:00:14.3]} 63. c5 {[%clk
0:01:13.6]} 63... Bd4 {[%clk 0:00:14.9]} 64. b7 {[%clk 0:01:06.6]} 64... Bxg1
{[%clk 0:00:12.8]} 65. b8=Q {[%clk 0:01:06.8]} 65... Bxc5 {[%clk 0:00:13.2]} 66.
Qb7+ {[%clk 0:01:07.2]} 66... Ke3 {[%clk 0:00:13.2]} 67. Qxg2 {[%clk 0:01:08.1]}
1-0

[Event "Early-Titled-Tuesday-Blitz-July-09-2024"]
[Site "Chess.com"]
[Date "2024.07.09"]
[Round "5"]
[White "santig8"]
[Black "YaWaleriy"]
[Result "0-1"]
[WhiteElo "2281"]
[BlackElo "2438"]
[TimeControl "180+1"]
[EndTime "8:58:12 PDT"]
[Termination "YaWaleriy won on time"]

1. e4 {[%clk 0:02:29.6]} 1... e6 {[%clk 0:02:58.7]} 2. d4 {[%clk 0:02:29.1]}
2... d5 {[%clk 0:02:58.6]} 3. Nc3 {[%clk 0:02:27.5]} 3... dxe4 {[%clk
0:02:57.5]} 4. Nxe4 {[%clk 0:02:27.1]} 4... Nd7 {[%clk 0:02:58.1]} 5. Nf3 {[%clk
0:02:23.5]} 5... Ngf6 {[%clk 0:02:58]} 6. Bg5 {[%clk 0:02:22]} 6... Be7 {[%clk
0:02:57.4]} 7. Bxf6 {[%clk 0:02:21.8]} 7... Nxf6 {[%clk 0:02:58]} 8. Bd3 {[%clk
0:02:21.5]} 8... O-O {[%clk 0:02:54.6]} 9. O-O {[%clk 0:02:18.9]} 9... b6 {[%clk
0:02:42.7]} 10. Qe2 {[%clk 0:02:18.7]} 10... Bb7 {[%clk 0:02:42.6]} 11. c3
{[%clk 0:02:17.6]} 11... c5 {[%clk 0:02:29.3]} 12. dxc5 {[%clk 0:02:08.7]} 12...
Bxe4 {[%clk 0:02:19.8]} 13. Bxe4 {[%clk 0:02:09.6]} 13... Nxe4 {[%clk
0:02:19.6]} 14. Qxe4 {[%clk 0:02:10.5]} 14... Bxc5 {[%clk 0:02:18.2]} 15. Rad1
{[%clk 0:02:08.2]} 15... Qe7 {[%clk 0:02:16.5]} 16. Ne5 {[%clk 0:02:04.8]} 16...
f6 {[%clk 0:01:41.8]} 17. Rd7 {[%clk 0:01:25.7]} 17... Qe8 {[%clk 0:01:41.2]}
18. Qg4 {[%clk 0:01:25.3]} 18... g6 {[%clk 0:01:35.4]} 19. Qh4 {[%clk
0:00:35.3]} 19... Be7 {[%clk 0:01:29]} 20. Rfd1 {[%clk 0:00:24.7]} 20... Rd8
{[%clk 0:01:11.6]} 21. Rxd8 {[%clk 0:00:21.7]} 21... Bxd8 {[%clk 0:01:11.4]} 22.
Ng4 {[%clk 0:00:20.5]} 22... f5 {[%clk 0:01:03.2]} 23. Nh6+ {[%clk 0:00:19.7]}
23... Kg7 {[%clk 0:00:58.8]} 24. Qh3 {[%clk 0:00:17.2]} 24... Bg5 {[%clk
0:00:54]} 25. Nxf5+ {[%clk 0:00:09.7]} 25... exf5 {[%clk 0:00:52.6]} 26. c4
{[%clk 0:00:09.6]} 26... Bf6 {[%clk 0:00:51.9]} 27. Qa3 {[%clk 0:00:07.4]} 27...
Qe7 {[%clk 0:00:49.6]} 28. Qb3 {[%clk 0:00:05.6]} 28... Re8 {[%clk 0:00:49.1]}
29. h3 {[%clk 0:00:04.9]} 29... Rd8 {[%clk 0:00:48.3]} 30. Rc1 {[%clk 0:00:03]}
30... Qe2 {[%clk 0:00:45.2]} 31. Rb1 {[%clk 0:00:01.9]} 31... Rd2 {[%clk
0:00:43.8]} 32. Rf1 {[%clk 0:00:02.5]} 32... Bd4 {[%clk 0:00:41.9]} 33. Qa4
{[%clk 0:00:02.3]} 33... Bxf2+ {[%clk 0:00:37.6]} 34. Kh2 {[%clk 0:00:02.7]}
34... Qe5+ {[%clk 0:00:37.2]} 35. Kh1 {[%clk 0:00:02]} 35... Bg3 {[%clk
0:00:36.1]} 36. Qxa7+ {[%clk 0:00:01.9]} 36... Kh6 {[%clk 0:00:34.2]} 37. Qxb6
{[%clk 0:00:02.3]} 37... Qe4 {[%clk 0:00:30.1]} 38. Rg1 {[%clk 0:00:02.5]} 38...
Be5 {[%clk 0:00:25.6]} 39. a4 {[%clk 0:00:02.4]} 39... Qf4 {[%clk 0:00:24.9]}
40. g3 {[%clk 0:00:01.1]} 40... Qf3+ {[%clk 0:00:24.4]} 0-1